bitfinex-derivatives/quotes_ETHF0:USTF0_20250904
["timestamp","ask_amount","ask_price","bid_price","bid_amount"]
[1756987946388,1.01889,4415.4,4415.0,1.186]
[1756987946592,1.55595,4415.4,4415.3,1.186]
[1756987946793,1.55595,4415.4,4415.3,1.418]
[1756987947395,0.98075,4415.4,4415.3,2.3164]
[1756987947595,0.40755,4415.4,4415.3,2.3164]
[1756987948191,0.98075,4415.4,4415.3,2.3164]
[1756987948393,1.55595,4415.4,4415.3,2.3164]
[1756987948595,2.38775,4415.4,4415.3,2.3164]
[1756987949103,2.38775,4415.4,4415.3,43.1164]
[1756987951303,1.81255,4415.4,4415.3,43.1164]
[1756987951499,0.40755,4415.4,4415.3,43.1164]
[1756987951702,0.40755,4415.4,4415.3,44.33548366]
[1756987952206,0.40755,4415.4,4415.3,43.1164]
[1756987952803,0.40755,4415.4,4415.3,44.10348366]
[1756987953105,1.23935,4415.4,4415.3,44.33548366]
[1756987955299,0.40755,4415.4,4415.3,44.33548366]
[1756987956695,0.40755,4415.4,4415.3,45.55456732]
[1756987958908,0.40754,4415.5,4415.4,0.8984]
[1756987959204,0.40754,4415.5,4415.4,3.30348366]
[1756987960209,0.40754,4415.5,4415.4,2.0844]
[1756987961809,1.81254,4415.5,4415.4,2.0844]
[1756987962409,2.38774,4415.5,4415.4,2.0844]
[1756987962602,2.73424,4415.5,4415.4,3.53548366]
[1756987963611,2.73424,4415.5,4415.4,2.63708366]
[1756987966109,2.73424,4415.5,4415.4,3.48978366]
[1756987968919,2.38774,4415.5,4415.4,3.48978366]
[1756987970719,2.73424,4415.5,4415.4,3.48978366]
[1756987971616,1.81254,4415.5,4415.4,3.48978366]
[1756987971815,1.23934,4415.5,4415.4,3.48978366]
[1756987972219,0.40754,4415.5,4415.4,3.48978366]
[1756987972420,1.24044,4415.5,4415.4,3.48978366]
[1756987973122,1.82214,4415.5,4415.4,3.48978366]
[1756987973329,2.72724,4415.5,4415.4,3.48978366]
[1756987974133,2.72724,4415.5,4415.4,2.03658366]
[1756987975032,2.72724,4415.5,4415.4,3.48298366]
[1756987977335,1.24044,4415.5,4415.4,3.48298366]
[1756987977537,0.40754,4415.5,4415.4,3.48298366]
[1756987977838,1.24044,4415.5,4415.4,3.48298366]
[1756987978231,1.82214,4415.5,4415.4,3.48298366]
[1756987978629,1.24044,4415.5,4415.4,4.70206732]
[1756987978936,0.40754,4415.5,4415.4,4.70206732]
[1756987980237,1.85169,4415.9,4415.5,1.1667]
[1756987980425,0.4075,4416.0,4415.9,2.0302]
[1756987980625,0.4075,4416.0,4415.9,3.48128366]
[1756987980822,1.0187,4416.3,4415.9,2.62858366]
[1756987981027,0.40749,4416.1,4416.0,2.0302]
[1756987981229,1.82209,4416.1,4416.0,2.0302]
[1756987981434,1.24039,4416.1,4416.0,2.0302]
[1756987982229,1.82209,4416.1,4416.0,2.0302]
[1756987983529,1.82209,4416.1,4416.0,2.26187866]
[1756987986328,2.38069,4416.1,4416.0,2.26187866]
[1756987987442,2.38069,4416.1,4416.0,4.2166102]
[1756987987738,2.38069,4416.1,4416.0,3.0012102]
[1756987988132,4.22638,4416.8,4416.0,4.7616102]
[1756987988339,4.22638,4416.8,4416.7,3.00756577]
[1756987988340,2.38062,4416.8,4416.7,3.00756577]
[1756987988642,2.38062,4416.8,4416.7,3.23856577]
[1756987989940,2.38062,4416.8,4416.7,1.20836577]
[1756987990138,2.38062,4416.8,4416.7,2.38586577]
[1756987990343,2.38062,4416.8,4416.7,3.23856577]
[1756987990540,1.82202,4416.8,4416.7,3.23856577]
[1756987991236,1.82202,4416.8,4416.7,6.44636577]
[1756987991945,0.8329,4417.0,4416.7,6.57103154]
[1756987992241,0.40742,4416.9,4416.8,2.0302]
[1756987992543,0.40742,4416.9,4416.8,2.2612]
[1756987992843,2.40132,4416.9,4416.8,2.2612]
[1756987993436,2.40132,4416.9,4416.8,1.1775]
[1756987993636,2.40132,4416.9,4416.8,1.79216577]
[1756987995337,2.40132,4416.9,4416.8,0.231]
[1756987995542,2.40132,4416.9,4416.8,1.20836577]
[1756987997738,2.40132,4416.9,4416.8,0.97736577]
[1756987997943,2.40132,4416.9,4416.8,1.20836577]
[1756988002054,2.40132,4416.9,4416.8,0.97736577]
[1756988003154,2.40132,4416.9,4416.8,1.54656577]
[1756988004446,0.40748,4416.3,4416.2,3.777]
[1756988004644,2.40138,4416.3,4416.2,0.97736577]
[1756988005451,2.40138,4416.3,4416.2,1.54656577]
[1756988008455,2.40138,4416.3,4416.2,2.09596577]
[1756988008655,2.03714,4416.9,4416.2,2.09596577]
[1756988008656,3.2078,4417.3,4416.3,0.8697]
[1756988008958,0.40747,4416.4,4416.3,1.9883]
[1756988009160,0.40744,4416.7,4416.6,0.8697]
[1756988009359,0.40744,4416.7,4416.6,1.9883]
[1756988009653,1.1697,4416.7,4416.3,2.20857377]
[1756988009857,1.1697,4416.7,4415.1,0.8697]
[1756988009858,1.01888,4415.6,4415.1,0.8697]
[1756988010051,1.57736,4414.3,4414.2,1.6186]
[1756988010256,0.40766,4414.3,4414.2,2.59596577]
[1756988010652,0.40766,4414.3,4414.2,2.8212844]
[1756988012062,0.40766,4414.3,4414.2,3.6909844]
[1756988012560,1.57736,4414.3,4414.2,2.16421863]
[1756988012760,2.08046,4414.3,4414.2,3.1415844]
[1756988013163,1.57736,4414.3,4414.2,3.1415844]
[1756988015166,0.40766,4414.3,4414.2,3.6909844]
[1756988018765,3.61541,4414.9,4414.8,0.8697]
[1756988019066,3.61541,4414.9,4414.8,3.94303154]
[1756988019963,3.61541,4414.9,4414.8,2.96566577]
[1756988020167,3.61541,4414.9,4414.8,3.94303154]
[1756988020366,3.61541,4414.9,4414.8,2.96566577]
[1756988020766,4.20701,4414.9,4414.8,2.96566577]
[1756988022264,4.78511,4414.9,4414.8,0.44976577]
[1756988022473,1.01925,4413.9,4413.3,0.41842]
[1756988022771,2.0062,4412.8,4412.7,3.2078]
[1756988022966,1.1257,4412.3,4412.2,3.2078]
[1756988023265,1.53355,4412.3,4412.2,4.3651]
[1756988023567,1.53355,4412.3,4412.2,5.34246577]
[1756988024771,1.53355,4412.3,4412.2,3.02576577]
[1756988028072,0.40785,4412.3,4412.2,3.02576577]
[1756988028667,0.40784,4412.4,4412.3,2.0484]
[1756988028874,3.2078,4413.2,4413.0,0.3375]
[1756988029069,3.61556,4413.2,4413.1,2.0484]
[1756988029466,4.16126,4413.2,4413.1,2.0484]
[1756988029667,4.74126,4413.2,4413.1,2.0484]
[1756988030867,4.16126,4413.2,4413.1,2.0484]
[1756988031074,0.40776,4413.2,4413.1,2.0484]
[1756988034764,0.8155,4413.1,4413.0,0.3375]
[1756988034971,0.5457,4412.8,4412.6,0.97736577]
[1756988035168,0.5457,4412.8,4412.7,0.5958]
[1756988035365,0.9535,4412.8,4412.7,1.1573]
[1756988035570,2.349,4412.8,4412.7,3.02576577]
[1756988035972,1.5335,4412.8,4412.7,3.02576577]
[1756988036967,2.349,4412.8,4412.7,3.02576577]
[1756988038467,1.5335,4412.8,4412.7,3.02576577]
[1756988039371,0.4078,4412.8,4412.7,3.02576577]
[1756988040476,0.4078,4412.8,4412.7,2.0484]
[1756988040676,0.4078,4412.8,4412.7,3.02576577]
[1756988042178,0.95352,4412.6,4412.5,2.47216577]
[1756988042576,0.95352,4412.6,4412.5,3.36326577]
[1756988043375,0.40782,4412.6,4412.5,3.36326577]
[1756988044674,0.1133,4413.0,4412.6,0.8911]
[1756988044876,0.52108,4413.0,4412.9,2.0484]
[1756988045179,0.40778,4413.0,4412.8,0.97736577]
[1756988045375,0.5457,4411.7,4411.6,1.1573]
[1756988045574,0.4079,4411.8,4411.6,2.35900703]
[1756988046272,0.4079,4411.8,4411.7,2.13466577]
[1756988047283,0.4079,4411.8,4411.7,2.83316577]
[1756988047478,0.52119,4411.9,4411.7,2.13466577]
[1756988047681,0.52119,4411.9,4411.8,1.8558]
[1756988047982,0.40789,4411.9,4411.8,1.8558]
[1756988049080,0.40789,4411.9,4411.8,2.83316577]
[1756988049481,0.40789,4411.9,4411.8,3.0759943]
[1756988049879,0.8155,4412.9,4412.0,1.3378]
[1756988050182,1.76899,4412.9,4412.8,1.1573]
[1756988050585,1.76899,4412.9,4412.8,1.8558]
[1756988053287,0.40779,4412.9,4412.8,1.8558]
[1756988055390,0.40778,4413.1,4413.0,1.8648]
[1756988055577,0.40778,4413.1,4413.0,3.0849943]
[1756988057084,1.2004,4413.5,4413.0,3.0849943]
[1756988057289,3.2078,4414.3,4414.2,1.1309]
[1756988057290,1.57667,4414.3,4414.2,1.1309]
[1756988057593,1.57667,4414.3,4414.2,2.0233]
[1756988057985,0.40747,4416.4,4415.6,0.0808]
[1756988058281,0.40747,4416.4,4415.0,0.3479]
[1756988058282,0.5939,4416.4,4416.3,5.5588943]
[1756988058482,0.3478,4417.0,4416.4,0.8924]
[1756988058680,0.3478,4417.5,4416.9,7.6714886]
[1756988058886,0.5939,4417.0,4416.9,2.0233]
[1756988059081,0.3478,4417.5,4416.9,5.2311]
[1756988059282,2.3819,4417.5,4417.4,3.2078]
[1756988064792,0.5939,4417.5,4417.4,5.2311]
[1756988066186,0.8651,4417.7,4417.4,5.2311]
[1756988066388,1.459,4417.7,4417.6,1.1309]
[1756988066584,1.459,4417.7,4417.6,2.0233]
[1756988069692,2.0341,4417.7,4417.6,2.0233]
[1756988072400,1.57636,4417.6,4417.5,2.0233]
[1756988072700,1.00126,4417.6,4417.5,2.0233]
[1756988072900,0.5939,4417.6,4417.5,2.0233]
[1756988073598,1.459,4417.6,4417.5,2.0233]
[1756988074401,1.40735,4417.7,4417.5,2.0233]
[1756988074602,2.86635,4417.7,4417.6,2.0233]
[1756988076201,3.44145,4417.7,4417.6,2.0233]
[1756988078503,2.459,4417.7,4417.6,2.0233]
[1756988078895,2.86635,4417.7,4417.6,2.0233]
[1756988079091,2.459,4417.7,4417.6,2.0233]
[1756988079600,2.86635,4417.7,4417.6,2.0233]
[1756988079803,2.459,4417.7,4417.6,2.0233]
[1756988081107,1.0,4417.7,4417.6,2.0233]
[1756988081910,1.8651,4417.7,4417.6,2.0233]
[1756988082308,2.27244,4417.7,4417.6,2.0233]
[1756988082509,1.8651,4417.7,4417.6,2.0233]
[1756988083311,2.27245,4417.7,4417.6,2.0233]
[1756988083506,1.8651,4417.7,4417.6,2.0233]
[1756988084614,1.0,4417.7,4417.6,2.0233]
[1756988085209,1.0,4417.7,4417.6,6.24965999]
[1756988085414,1.0,4417.7,4417.6,6.65700999]
[1756988085913,1.0,4417.7,4417.6,2.0233]
[1756988087006,1.0,4417.7,4417.6,2.43065]
[1756988087201,1.0,4417.7,4417.6,2.0233]
[1756988089309,0.869,4418.0,4417.6,2.0233]
[1756988089518,0.869,4418.0,4417.9,5.259]
[1756988089918,1.27632,4418.0,4417.9,5.259]
[1756988090123,1.89122,4418.0,4417.9,5.259]
[1756988092720,1.4839,4418.0,4417.9,5.259]
[1756988092915,1.89122,4418.0,4417.9,5.259]
[1756988093526,2.49302,4418.0,4417.9,5.259]
[1756988094124,6.84102,4418.0,4417.9,3.2078]
[1756988099328,2.84102,4418.0,4417.9,3.2078]
[1756988100227,2.84102,4418.0,4417.9,3.8031]
[1756988100832,2.84102,4418.0,4417.9,5.259]
[1756988101026,2.4337,4418.0,4417.9,5.259]
[1756988101227,1.2167,4419.5,4419.0,0.3632]
[1756988101428,1.62391,4419.2,4419.1,3.2078]
[1756988101830,0.40719,4419.4,4419.1,5.259]
[1756988102034,1.02209,4419.4,4419.3,2.0512]
[1756988102232,0.6149,4419.4,4419.3,2.0512]
[1756988102532,1.2167,4419.4,4419.3,1.4694]
[1756988102738,0.348,4420.0,4419.3,1.1771]
[1756988103038,1.62385,4419.8,4419.7,5.259]
[1756988103339,0.40714,4420.0,4419.8,0.8741]
[1756988103536,2.49284,4420.0,4419.9,5.259]
[1756988103726,1.02204,4420.0,4419.9,5.259]
[1756988104033,2.0857,4420.9,4420.8,0.5953]
[1756988104241,2.0857,4420.9,4420.8,4.3849]
[1756988104444,2.49266,4421.9,4421.8,0.5953]
[1756988104737,1.62367,4421.8,4421.7,0.22412253]
[1756988104930,1.4839,4421.7,4421.6,3.8031]
[1756988105125,0.40695,4422.0,4421.6,4.3849]
[1756988105326,0.6149,4422.1,4422.0,1.5403]
[1756988105633,2.49259,4422.6,4422.5,2.0512]
[1756988105930,3.2078,4423.0,4422.5,2.4144]
[1756988106231,0.40678,4423.9,4423.8,0.8741]
[1756988106436,0.40676,4424.1,4423.8,3.2078]
[1756988106633,0.40674,4424.4,4424.0,1.5403]
[1756988106840,0.40674,4424.4,4424.3,5.259]
[1756988107135,0.40664,4425.4,4425.1,1.1771]
[1756988107439,0.869,4426.2,4425.2,0.8741]
[1756988107630,1.27561,4425.7,4425.6,4.0819]
[1756988107831,0.869,4426.9,4425.7,0.8741]
[1756988108032,0.40649,4427.1,4426.7,4.0819]
[1756988108229,0.869,4427.8,4426.8,0.8741]
[1756988108433,0.40644,4427.6,4427.2,4.0819]
[1756988108729,0.40636,4428.4,4427.3,0.8741]
[1756988108930,0.869,4428.4,4427.7,3.2078]
[1756988109232,0.40636,4428.5,4428.1,0.8741]
[1756988109435,0.40637,4428.3,4428.1,0.8741]
[1756988109733,0.17,4428.9,4428.6,0.8741]
[1756988109941,0.40634,4428.7,4428.6,4.0819]
[1756988110636,1.869,4430.0,4428.7,0.8741]
[1756988110841,0.869,4429.2,4428.7,0.8741]
[1756988111037,0.40633,4428.8,4428.6,3.2078]
[1756988111238,1.27533,4428.8,4428.6,3.2078]
[1756988111439,0.869,4428.7,4428.6,3.2078]
[1756988111629,0.869,4428.2,4427.6,3.2078]
[1756988111834,0.40643,4427.7,4427.6,3.2078]
[1756988112038,0.40643,4427.7,4427.6,0.8741]
[1756988112335,0.9056,4428.2,4427.2,0.9068]
[1756988112539,0.40646,4427.3,4427.2,0.9068]
[1756988112730,1.01603,4427.9,4426.5,0.3632]
[1756988112731,0.40652,4426.7,4426.6,4.1146]
[1756988113331,0.9056,4427.7,4426.7,0.9068]
[1756988113530,0.40651,4426.8,4426.7,0.9068]
[1756988113841,0.9056,4426.7,4426.6,3.2078]
[1756988114043,1.01616,4427.3,4426.0,3.571]
[1756988114239,0.40657,4426.1,4426.0,4.1146]
[1756988114448,0.40657,4426.1,4426.0,1.2533]
[1756988114842,0.40662,4425.6,4425.4,3.2078]
[1756988115150,1.01634,4426.5,4425.4,3.2078]
[1756988115338,0.40661,4425.7,4425.6,0.9068]
[1756988115545,0.40664,4425.3,4425.2,35.3326]
[1756988116262,0.31224,4426.0,4425.2,35.3326]
[1756988116435,1.01646,4426.0,4425.3,0.9068]
[1756988116640,1.01646,4426.0,4424.8,0.9068]
[1756988116641,0.40668,4424.9,4424.8,0.9068]
[1756988116844,0.40673,4424.4,4424.3,0.9068]
[1756988117247,0.40678,4423.9,4423.7,0.9068]
[1756988117740,0.40672,4424.6,4424.5,0.3465]
[1756988118046,0.4067,4424.8,4424.6,0.9068]
[1756988118249,0.40671,4424.6,4424.5,0.9068]
[1756988118449,1.01662,4425.3,4424.0,0.3465]
[1756988118450,0.40676,4424.1,4424.0,1.2533]
[1756988118649,0.40674,4424.3,4424.1,0.9068]
[1756988118948,0.40666,4425.1,4424.0,0.3465]
[1756988119151,0.6878,4425.5,4424.5,0.3465]
[1756988119354,0.40663,4425.5,4425.1,0.9068]
[1756988119554,3.2078,4425.9,4425.1,0.9068]
[1756988119748,0.40666,4425.1,4425.0,0.3465]
[1756988119945,0.40666,4425.2,4425.0,0.3465]
[1756988120247,0.40664,4425.4,4425.1,0.9068]
[1756988120447,0.40666,4425.2,4425.1,0.9068]
[1756988121152,0.40671,4424.6,4424.5,1.2533]
[1756988121549,0.40676,4424.1,4424.0,1.2533]
[1756988122261,0.40676,4424.1,4424.0,0.9068]
[1756988123353,0.40676,4424.1,4424.0,1.2533]
[1756988123662,0.6878,4425.5,4424.5,1.2533]
[1756988123961,1.01651,4425.8,4425.1,0.9068]
[1756988124256,0.40665,4425.3,4425.1,0.9068]
[1756988124452,0.40666,4425.1,4425.0,1.2533]
[1756988125257,0.40666,4425.1,4424.9,3.2078]
[1756988125446,0.40673,4424.4,4424.3,3.2078]
[1756988125650,0.40671,4424.6,4424.5,0.3465]
[1756988126555,0.4067,4424.8,4424.5,4.3465]
[1756988126755,1.01655,4425.6,4424.5,0.3465]
[1756988126952,1.01654,4425.7,4425.3,3.45921313]
[1756988127152,0.40664,4425.4,4425.3,3.45921313]
[1756988127354,0.40664,4425.4,4425.3,4.36601313]
[1756988128067,0.40666,4425.1,4425.0,1.2533]
[1756988128556,0.40657,4426.1,4426.0,0.3465]
[1756988128751,1.01621,4427.1,4426.1,0.9068]
[1756988128957,0.40648,4427.1,4427.0,3.80571313]
[1756988129154,3.2078,4427.5,4427.0,7.80571313]
[1756988129451,0.9056,4428.7,4427.0,7.80571313]
[1756988129452,0.40643,4427.7,4427.1,0.9068]
[1756988129656,0.9056,4428.7,4427.7,0.9068]
[1756988129857,0.40637,4428.4,4428.2,0.9068]
[1756988130058,0.40634,4428.7,4428.2,0.9068]
[1756988130258,0.40635,4428.6,4428.5,1.2533]
[1756988131160,0.40635,4428.6,4428.5,4.71251313]
[1756988131761,0.40635,4428.6,4428.5,4.95451313]
[1756988133863,1.40635,4428.6,4428.5,4.95451313]
[1756988134066,3.6141,4429.1,4429.0,1.2533]
[1756988134266,3.6141,4429.1,4429.0,4.95451313]
[1756988134760,3.6141,4429.1,4429.0,0.9068]
[1756988134960,4.5197,4429.1,4429.0,1.1488]
[1756988135167,3.6141,4429.1,4429.0,1.1488]
[1756988135660,3.6141,4429.1,4429.0,1.4953]
[1756988136062,3.6141,4429.1,4429.0,0.9068]
[1756988136366,0.40634,4428.6,4428.5,0.9068]
[1756988136556,0.40634,4428.6,4428.5,4.60801313]
[1756988137461,0.9056,4429.0,4428.2,0.9068]
[1756988137768,0.40629,4429.2,4429.1,0.9068]
[1756988137954,1.01567,4429.5,4428.6,0.94219737]
[1756988137955,0.9056,4428.9,4428.6,0.94219737]
[1756988138160,0.40658,4426.0,4425.9,0.9068]
[1756988138355,1.01633,4426.6,4425.9,0.9068]
[1756988138356,1.01632,4426.6,4425.9,7.57381313]
[1756988138560,3.61432,4426.7,4426.6,0.9068]
[1756988138772,0.40652,4426.7,4426.6,1.1538]
[1756988139159,0.40652,4426.7,4426.6,0.9068]
[1756988139369,0.40656,4426.2,4426.1,0.9068]
[1756988139567,0.40661,4425.7,4425.6,34.62521313]
[1756988139863,0.86501,4425.7,4425.6,30.71081]
[1756988140063,1.01668,4425.1,4424.5,0.3465]
[1756988140266,0.40669,4424.8,4424.6,0.247]
[1756988140466,1.01672,4424.9,4424.7,0.247]
[1756988140664,0.40673,4424.4,4424.3,34.3748]
[1756988140868,0.40673,4424.4,4424.3,34.6218]
[1756988141265,0.40673,4424.4,4424.3,38.08101313]
[1756988141663,0.40673,4424.4,4424.3,38.74081313]
[1756988141971,0.40673,4424.4,4424.3,38.98781313]
[1756988142968,0.40673,4424.4,4424.3,38.74081313]
[1756988143163,0.40673,4424.4,4424.3,38.98781313]
[1756988143865,0.40673,4424.4,4424.3,35.53301313]
[1756988144065,0.40673,4424.4,4424.3,35.78001313]
[1756988144469,0.4068,4423.6,4423.2,0.9246]
[1756988144671,10.16821,4424.5,4423.0,0.3465]
[1756988144672,0.40685,4423.1,4423.0,0.3465]
[1756988144879,0.40685,4423.1,4423.0,3.8013]
[1756988145076,0.40685,4423.1,4423.0,4.7259]
[1756988145574,0.40683,4423.3,4423.1,0.9246]
[1756988145770,0.40683,4423.3,4423.2,1.1716]
[1756988145968,0.40683,4423.3,4423.2,0.9246]
[1756988146279,0.90217,4422.9,4422.8,0.2470049]
[1756988146865,0.90217,4422.9,4422.8,4.9e-06]
[1756988147064,0.40703,4421.1,4420.5,3.5796]
[1756988147272,0.40703,4421.1,4421.0,1.5434]
[1756988147876,0.40703,4421.1,4421.0,4.7512]
[1756988148076,0.40703,4421.1,4421.0,1.5434]
[1756988149362,0.40703,4421.1,4421.0,1.2964]
[1756988149563,0.40708,4420.6,4420.5,1.2964]
[1756988149770,1.01761,4421.0,4420.0,1.2964]
[1756988149771,0.40712,4420.1,4420.0,1.2964]
[1756988150070,0.40712,4420.1,4420.0,1.5434]
[1756988150571,0.40712,4420.1,4419.9,31.177]
[1756988150771,0.40712,4420.1,4420.0,0.247]
[1756988150976,0.40712,4420.1,4420.0,1.1716]
[1756988151171,0.4953,4420.0,4419.9,31.177]
[1756988151372,4.4953,4420.0,4419.9,0.247]
[1756988151576,0.40721,4419.2,4419.1,0.9246]
[1756988151869,0.40721,4419.2,4419.1,1.1716]
[1756988152975,0.40721,4419.2,4419.1,0.9246]
[1756988153173,1.30571,4419.2,4419.1,0.247]
[1756988153366,0.40731,4418.1,4418.0,3.5796]
[1756988153579,0.40731,4418.1,4418.0,3.8266]
[1756988153795,0.40731,4418.1,4418.0,3.2078]
[1756988153971,0.40737,4417.4,4417.2,31.193]
[1756988154173,0.40737,4417.4,4417.3,0.247]
[1756988154374,0.40737,4417.4,4417.2,31.193]
[1756988154677,0.40737,4417.4,4417.3,0.247]
[1756988155079,0.40737,4417.4,4417.3,1.1716]
[1756988155273,0.40736,4417.6,4417.3,0.247]
[1756988155473,0.40735,4417.6,4417.5,1.2964]
[1756988155680,0.40731,4418.1,4418.0,0.3718]
[1756988155882,0.40731,4418.1,4418.0,5.00261313]
[1756988156274,0.4073,4418.2,4418.1,0.9246]
[1756988156475,0.40728,4418.5,4418.1,0.9246]
[1756988156678,0.40726,4418.6,4418.5,1.2964]
[1756988156976,0.40725,4418.7,4418.6,0.9246]
[1756988157567,0.40725,4418.7,4418.6,1.1716]
[1756988158278,3.2078,4419.6,4419.0,0.3718]
[1756988158474,3.2078,4419.6,4419.2,0.9246]
[1756988158678,0.40718,4419.5,4419.4,0.9246]
[1756988159077,0.40718,4419.5,4419.3,0.247]
[1756988159381,1.30568,4419.5,4419.3,0.247]
[1756988159775,0.40718,4419.5,4419.3,0.247]
[1756988159981,0.40718,4419.5,4419.4,0.9246]
[1756988160481,1.30568,4419.5,4419.4,0.247]
[1756988160782,0.40718,4419.5,4419.4,1.1716]
[1756988161274,3.2078,4420.1,4419.4,1.1716]
[1756988161275,0.40716,4419.7,4419.4,1.1716]
[1756988161481,0.40716,4419.7,4419.6,0.9246]
[1756988162284,0.40716,4419.7,4419.6,1.1716]
[1756988163893,0.40716,4419.7,4419.6,0.9246]
[1756988164086,0.40716,4419.7,4419.6,1.1716]
[1756988164386,0.40712,4420.1,4420.0,1.2964]
[1756988164581,0.40712,4420.1,4420.0,5.00161313]
[1756988165876,1.30562,4420.1,4420.0,0.246]
[1756988166080,4.51342,4420.1,4420.0,0.246]
[1756988166593,0.40717,4419.6,4419.5,0.9246]
[1756988166784,0.40717,4419.6,4419.5,1.1706]
[1756988167090,1.91646,4419.5,4419.2,0.9246]
[1756988167282,0.40719,4419.4,4419.3,0.246]
[1756988167681,1.01817,4418.6,4417.9,3.2078]
[1756988167886,1.01809,4418.9,4418.3,0.9246]
[1756988168177,0.40728,4418.4,4418.3,0.9246]
[1756988168382,0.40728,4418.4,4418.3,1.1706]
[1756988168886,0.40726,4418.7,4418.6,0.9246]
[1756988169086,0.40726,4418.7,4418.6,4.62981313]
[1756988169588,3.2078,4418.8,4418.7,0.9246]
[1756988169790,0.40721,4419.2,4419.1,0.9246]
[1756988170090,0.40721,4419.2,4419.1,5.16100296]
[1756988170278,0.4072,4419.3,4419.2,0.9246]
[1756988170984,1.01769,4420.7,4419.3,0.9246]
[1756988171289,0.40706,4420.8,4420.7,0.9246]
[1756988171590,0.40706,4420.8,4420.7,1.1706]
[1756988171789,0.40706,4420.8,4420.7,0.9246]
[1756988171986,1.0177,4420.6,4420.0,0.9246]
[1756988172182,0.40715,4419.8,4419.7,3.2078]
[1756988172384,0.40715,4419.8,4419.7,3.4538]
[1756988172883,0.40715,4419.8,4419.7,4.4164]
[1756988173094,0.9646,4420.8,4419.7,4.4164]
[1756988173290,0.40712,4420.1,4420.0,1.317]
[1756988173496,0.40712,4420.1,4420.0,1.563]
[1756988173881,0.40712,4420.1,4420.0,1.317]
[1756988174192,10.41958,4422.2,4420.0,1.317]
[1756988174193,0.9646,4421.4,4420.0,0.6004]
[1756988174396,0.40712,4420.2,4420.1,1.2086]
[1756988174588,0.9646,4421.4,4420.5,0.3544]
[1756988174589,0.40708,4420.6,4420.5,0.3544]
[1756988174798,0.40708,4420.6,4420.5,8.76120296]
[1756988174986,1.98214,4421.4,4420.6,0.9626]
[1756988175184,0.9646,4421.4,4420.7,0.246]
[1756988175488,0.407,4421.4,4421.3,0.9626]
[1756988175690,0.407,4421.4,4421.3,5.2086]
[1756988175888,0.40699,4421.6,4421.5,0.3544]
[1756988176090,0.40698,4421.7,4421.6,0.9626]
[1756988176299,0.40698,4421.7,4421.6,4.95300296]
[1756988176595,1.37158,4421.7,4421.6,0.246]
[1756988176789,0.40698,4421.7,4421.6,5.19900296]
[1756988176995,0.40697,4421.8,4421.7,0.9626]
[1756988177294,0.40697,4421.8,4421.7,4.4164]
[1756988177690,0.40697,4421.8,4421.7,4.1704]
[1756988177895,1.37157,4421.8,4421.7,3.2078]
[1756988178095,1.37157,4421.8,4421.7,3.4538]
[1756988178289,1.37157,4421.8,4421.7,3.2078]
[1756988178491,0.40697,4421.8,4421.7,4.4164]
[1756988178789,0.40697,4421.8,4421.7,4.1704]
[1756988178992,0.40697,4421.8,4421.7,4.4154]
[1756988179192,1.37157,4421.8,4421.7,0.245]
[1756988179393,0.40701,4421.3,4421.2,4.1704]
[1756988179593,0.40701,4421.3,4421.2,4.4154]
[1756988179794,1.01734,4422.2,4421.2,3.4528]
[1756988180096,0.40695,4422.0,4421.8,0.9626]
[1756988180393,1.37155,4422.0,4421.9,0.245]
[1756988180594,0.40695,4422.0,4421.9,0.9626]
[1756988180794,0.40695,4422.0,4421.9,1.2076]
[1756988181296,0.40695,4422.0,4421.9,0.9626]
[1756988181591,0.40695,4422.0,4421.2,3.2078]
[1756988181592,0.40701,4421.3,4421.2,3.2078]
[1756988181895,1.37161,4421.3,4421.2,3.4528]
[1756988182297,1.37161,4421.3,4421.2,3.2078]
[1756988182489,1.37161,4421.3,4421.2,3.4528]
[1756988182686,1.37161,4421.3,4421.2,0.245]
[1756988183588,0.40701,4421.3,4421.2,0.245]
[1756988183997,0.40701,4421.3,4421.1,31.217]
[1756988184196,1.37161,4421.3,4421.2,0.245]
[1756988184397,0.40701,4421.3,4421.2,4.4154]
[1756988184694,0.40701,4421.3,4421.2,8.40580296]
[1756988184891,0.40697,4421.9,4421.3,0.9626]
[1756988185092,1.01728,4422.5,4421.9,0.9626]
[1756988185291,1.01728,4422.5,4422.0,0.245]
[1756988185492,0.40693,4422.2,4422.1,0.9626]
[1756988185893,0.40693,4422.2,4422.1,1.2076]
[1756988186295,0.40693,4422.2,4422.1,0.9626]
[1756988186495,0.40693,4422.2,4422.1,1.2076]
[1756988186999,0.40693,4422.2,4421.8,7.19820296]
[1756988187000,0.40696,4421.9,4421.8,7.19820296]
[1756988187201,0.40696,4421.9,4421.8,8.40580296]
[1756988187492,1.37156,4421.9,4421.8,7.44320296]
[1756988187698,1.37156,4421.9,4421.8,3.4528]
[1756988187887,0.40696,4421.9,4421.8,8.40580296]
[1756988188292,0.40695,4422.1,4422.0,0.3544]
[1756988188494,0.40693,4422.3,4422.1,0.9626]
[1756988188695,0.40693,4422.3,4422.2,5.19800296]
[1756988189095,0.40693,4422.3,4422.2,4.95300296]
[1756988189287,0.40693,4422.3,4422.2,5.19800296]
[1756988191496,0.40693,4422.3,4422.2,5.19700296]
[1756988192502,1.37153,4422.3,4422.2,5.19700296]
[1756988192900,1.37153,4422.3,4422.2,4.95300296]
[1756988193106,2.37153,4422.3,4422.2,5.19700296]
[1756988193306,1.40693,4422.3,4422.2,5.19700296]